[Event "Titled Tuesday Blitz November 29 Early 2022"]
[White "Sovetbekova, Nurai"]
[Black "Andreev, Konstantin"]
[WhiteFideId "13801910"]
[BlackFideId "24239305"]
[WhiteElo "1925"]
[BlackElo "2106"]
[Result "0-1"]
[Round "03"]
[TimeControl "180+1"]
[Date "2022.11.30"]
[WhiteClock "0:00:03"]
[BlackClock "0:00:13"]

1. d4 {[%clk 0:03:00]}  Nf6 {[%clk 0:02:57]} 2. c4 {[%clk 0:03:00]}  e6 {[%clk 0:02:58]} 3. g3 {[%clk 0:03:01]}  d5 {[%clk 0:02:56]} 4. Bg2 {[%clk 0:03:01]}  Bb4+ {[%clk 0:02:57]} 5. Nd2 {[%clk 0:03:00]}  O-O {[%clk 0:02:55]} 6. Nf3 {[%clk 0:02:59]}  dxc4 {[%clk 0:02:47]} 7. O-O {[%clk 0:02:58]}  a6 {[%clk 0:02:43]} 8. Nxc4 {[%clk 0:02:53]}  b5 {[%clk 0:02:41]} 9. Ncd2 {[%clk 0:02:45]}  Bb7 {[%clk 0:02:38]} 10. Qc2 {[%clk 0:02:35]}  Nbd7 {[%clk 0:02:34]} 11. e4 {[%clk 0:02:11]}  Rc8 {[%clk 0:02:28]} 12. Rd1 {[%clk 0:01:49]}  Be7 {[%clk 0:02:25]} 13. e5 {[%clk 0:01:43]}  Nd5 {[%clk 0:02:23]} 14. Ne4 {[%clk 0:01:42]}  h6 {[%clk 0:02:20]} 15. Nc5 {[%clk 0:01:30]}  Ba8 {[%clk 0:01:56]} 16. Nxa6 {[%clk 0:01:16]}  c5 {[%clk 0:01:53]} 17. Nxc5 {[%clk 0:01:14]}  Nxc5 {[%clk 0:01:52]} 18. dxc5 {[%clk 0:01:14]}  Bxc5 {[%clk 0:01:53]} 19. Qe2 {[%clk 0:01:12]}  Qb6 {[%clk 0:01:49]} 20. Bd2 {[%clk 0:01:01]}  Bb7 {[%clk 0:01:48]} 21. a3 {[%clk 0:00:50]}  b4 {[%clk 0:01:35]} 22. axb4 {[%clk 0:00:48]}  Nxb4 {[%clk 0:01:36]} 23. Bc3 {[%clk 0:00:42]}  Ba6 {[%clk 0:01:34]} 24. Rxa6 {[%clk 0:00:21]}  Nxa6 {[%clk 0:01:31]} 25. Nd2 {[%clk 0:00:20]}  Rfd8 {[%clk 0:01:25]} 26. Nc4 {[%clk 0:00:19]}  Qb5 {[%clk 0:01:22]} 27. Bf1 {[%clk 0:00:18]}  Nb4 {[%clk 0:01:19]} 28. Qe1 {[%clk 0:00:13]}  Qb8 {[%clk 0:01:11]} 29. Rxd8+ {[%clk 0:00:09]}  Rxd8 {[%clk 0:01:11]} 30. Qe4 {[%clk 0:00:09]}  Nd5 {[%clk 0:01:09]} 31. Bd3 {[%clk 0:00:08]}  g6 {[%clk 0:01:08]} 32. Bd2 {[%clk 0:00:08]}  Qa7 {[%clk 0:00:59]} 33. Bxh6 {[%clk 0:00:06]}  Bxf2+ {[%clk 0:00:55]} 34. Kg2 {[%clk 0:00:07]}  Nb4 {[%clk 0:00:47]} 35. Bb1 {[%clk 0:00:06]}  Rd1 {[%clk 0:00:39]} 36. Nd6 {[%clk 0:00:04]}  Rg1+ {[%clk 0:00:38]} 37. Kh3 {[%clk 0:00:05]}  Nd5 {[%clk 0:00:30]} 38. Qf3 {[%clk 0:00:04]}  Bd4 {[%clk 0:00:26]} 39. Be4 {[%clk 0:00:03]}  Bxe5 {[%clk 0:00:25]} 40. Bxd5 {[%clk 0:00:02]}  exd5 {[%clk 0:00:24]} 41. Qxd5 {[%clk 0:00:03]}  Qd7+ {[%clk 0:00:24]} 42. Kh4 {[%clk 0:00:02]}  Qxd6 {[%clk 0:00:21]} 43. Qa8+ {[%clk 0:00:02]}  Kh7 {[%clk 0:00:20]} 44. Bg5 {[%clk 0:00:03]}  Bf6 {[%clk 0:00:19]} 45. Qe4 {[%clk 0:00:02]}  Bxg5+ {[%clk 0:00:17]} 46. Kxg5 {[%clk 0:00:03]}  Qd8+ {[%clk 0:00:15]} 47. Kf4 {[%clk 0:00:02]}  Rf1+ {[%clk 0:00:16]} 48. Ke5 {[%clk 0:00:02]}  Qf6+ {[%clk 0:00:14]} 49. Kd5 {[%clk 0:00:02]}  Qe6+ {[%clk 0:00:15]} 50. Qxe6 {[%clk 0:00:02]}  fxe6+ {[%clk 0:00:15]} 51. Kxe6 {[%clk 0:00:03]}  Rb1 {[%clk 0:00:14]} 52. Kf6 {[%clk 0:00:02]}  Rxb2 {[%clk 0:00:13]} 53. h4 {[%clk 0:00:03]}  Rb3 {[%clk 0:00:13]} 54. h5 {[%clk 0:00:03]} 0-1


[Site "https://www.chess.com"]

[Event "Titled Tuesday Blitz November 29 Early 2022"]
[White "Szabo, Marton Mihaly"]
[Black "Devaev, Alexander"]
[WhiteFideId "787086"]
[BlackFideId "4169395"]
[WhiteElo "2168"]
[BlackElo "2225"]
[Result "1-0"]
[Round "03"]
[TimeControl "180+1"]
[Date "2022.11.30"]
[WhiteClock "0:00:05"]
[BlackClock "0:00:04"]

1. e4 {[%clk 0:03:00]}  c6 {[%clk 0:02:59]} 2. Nc3 {[%clk 0:03:00]}  d5 {[%clk 0:03:00]} 3. Nf3 {[%clk 0:03:01]}  dxe4 {[%clk 0:03:00]} 4. Nxe4 {[%clk 0:03:02]}  Nf6 {[%clk 0:03:00]} 5. Qe2 {[%clk 0:03:03]}  Nxe4 {[%clk 0:03:00]} 6. Qxe4 {[%clk 0:03:04]}  Qd5 {[%clk 0:03:00]} 7. Qf4 {[%clk 0:03:03]}  Qe6+ {[%clk 0:02:59]} 8. Be2 {[%clk 0:03:02]}  Qf5 {[%clk 0:02:59]} 9. Qe3 {[%clk 0:03:00]}  Qxc2 {[%clk 0:02:32]} 10. Bd3 {[%clk 0:03:00]}  Qa4 {[%clk 0:02:30]} 11. b3 {[%clk 0:03:01]}  Qg4 {[%clk 0:02:28]} 12. Bb2 {[%clk 0:03:02]}  Qe6 {[%clk 0:02:29]} 13. O-O {[%clk 0:02:55]}  Qxe3 {[%clk 0:02:28]} 14. fxe3 {[%clk 0:02:55]}  f6 {[%clk 0:02:15]} 15. Bc2 {[%clk 0:02:52]}  Nd7 {[%clk 0:01:52]} 16. d4 {[%clk 0:02:52]}  e6 {[%clk 0:01:51]} 17. e4 {[%clk 0:02:52]}  Be7 {[%clk 0:01:47]} 18. d5 {[%clk 0:02:51]}  cxd5 {[%clk 0:01:45]} 19. exd5 {[%clk 0:02:52]}  e5 {[%clk 0:01:43]} 20. Rfd1 {[%clk 0:02:51]}  Bc5+ {[%clk 0:01:15]} 21. Kh1 {[%clk 0:02:51]}  O-O {[%clk 0:01:16]} 22. Rac1 {[%clk 0:02:51]}  Be3 {[%clk 0:00:56]} 23. Rb1 {[%clk 0:02:51]}  Nb6 {[%clk 0:00:53]} 24. d6 {[%clk 0:02:52]}  Be6 {[%clk 0:00:51]} 25. Be4 {[%clk 0:02:52]}  Rab8 {[%clk 0:00:50]} 26. Rd3 {[%clk 0:02:49]}  Bh6 {[%clk 0:00:45]} 27. Rdd1 {[%clk 0:02:33]}  f5 {[%clk 0:00:38]} 28. Bd3 {[%clk 0:02:33]}  e4 {[%clk 0:00:39]} 29. Nd4 {[%clk 0:02:34]}  Bd7 {[%clk 0:00:37]} 30. Bb5 {[%clk 0:02:28]}  Rbd8 {[%clk 0:00:20]} 31. Bxd7 {[%clk 0:02:19]}  Rxd7 {[%clk 0:00:20]} 32. Ne6 {[%clk 0:02:19]}  Rc8 {[%clk 0:00:21]} 33. Ba3 {[%clk 0:01:59]}  Be3 {[%clk 0:00:12]} 34. Re1 {[%clk 0:01:31]}  Bd2 {[%clk 0:00:11]} 35. Re2 {[%clk 0:01:29]}  e3 {[%clk 0:00:11]} 36. Rf1 {[%clk 0:01:13]}  Nd5 {[%clk 0:00:10]} 37. Bb2 {[%clk 0:00:50]}  Rxd6 {[%clk 0:00:11]} 38. Nxg7 {[%clk 0:00:49]}  Nc3 {[%clk 0:00:10]} 39. Bxc3 {[%clk 0:00:49]}  Rxc3 {[%clk 0:00:10]} 40. Nxf5 {[%clk 0:00:49]}  Re6 {[%clk 0:00:10]} 41. g4 {[%clk 0:00:33]}  Re4 {[%clk 0:00:08]} 42. h3 {[%clk 0:00:29]}  b5 {[%clk 0:00:07]} 43. Kg2 {[%clk 0:00:24]}  b4 {[%clk 0:00:07]} 44. Kf3 {[%clk 0:00:24]}  Re6 {[%clk 0:00:07]} 45. Kf4 {[%clk 0:00:24]}  a5 {[%clk 0:00:08]} 46. Kg5 {[%clk 0:00:23]}  Rc5 {[%clk 0:00:08]} 47. Kf4 {[%clk 0:00:20]}  Rce5 {[%clk 0:00:08]} 48. Rf3 {[%clk 0:00:20]}  Re4+ {[%clk 0:00:08]} 49. Kg3 {[%clk 0:00:20]}  R4e5 {[%clk 0:00:08]} 50. h4 {[%clk 0:00:21]}  Re4 {[%clk 0:00:09]} 51. h5 {[%clk 0:00:21]}  h6 {[%clk 0:00:08]} 52. Nh4 {[%clk 0:00:19]}  R6e5 {[%clk 0:00:07]} 53. Ng6 {[%clk 0:00:18]}  Rg5 {[%clk 0:00:06]} 54. Rf4 {[%clk 0:00:17]}  Rxf4 {[%clk 0:00:05]} 55. Kxf4 {[%clk 0:00:18]}  Rc5 {[%clk 0:00:05]} 56. Ne5 {[%clk 0:00:13]}  Rc2 {[%clk 0:00:05]} 57. g5 {[%clk 0:00:14]}  Rxa2 {[%clk 0:00:06]} 58. gxh6 {[%clk 0:00:12]}  Kh7 {[%clk 0:00:06]} 59. Nf7 {[%clk 0:00:11]}  a4 {[%clk 0:00:06]} 60. bxa4 {[%clk 0:00:10]}  b3 {[%clk 0:00:06]} 61. Rg2 {[%clk 0:00:10]}  Bc3 {[%clk 0:00:05]} 62. Rg6 {[%clk 0:00:07]}  b2 {[%clk 0:00:04]} 63. Ng5+ {[%clk 0:00:07]}  Kh8 {[%clk 0:00:05]} 64. h7 {[%clk 0:00:05]}  Bg7 {[%clk 0:00:04]} 65. h6 {[%clk 0:00:05]}  Bxh6 {[%clk 0:00:04]} 66. Rg8# {[%clk 0:00:05]} 1-0


[Site "https://www.chess.com"]

[Event "Titled Tuesday Blitz November 29 Early 2022"]
[White "Szyszylo, Rafal"]
[Black "Danielyan, Vahe"]
[WhiteFideId "1109626"]
[BlackFideId "13304828"]
[WhiteElo "1981"]
[BlackElo "2423"]
[Result "1/2-1/2"]
[Round "03"]
[TimeControl "180+1"]
[Date "2022.11.30"]
[WhiteClock "0:00:10"]
[BlackClock "0:02:15"]

1. e4 {[%clk 0:02:57]}  d6 {[%clk 0:03:00]} 2. d4 {[%clk 0:02:56]}  Nf6 {[%clk 0:03:01]} 3. Nc3 {[%clk 0:02:55]}  e5 {[%clk 0:03:02]} 4. Nf3 {[%clk 0:02:54]}  Nbd7 {[%clk 0:03:02]} 5. Bc4 {[%clk 0:02:51]}  Be7 {[%clk 0:03:02]} 6. a4 {[%clk 0:02:49]}  c6 {[%clk 0:03:02]} 7. O-O {[%clk 0:02:49]}  Qc7 {[%clk 0:03:02]} 8. Re1 {[%clk 0:02:49]}  h6 {[%clk 0:03:02]} 9. Ba2 {[%clk 0:02:48]}  g5 {[%clk 0:03:03]} 10. h3 {[%clk 0:02:43]}  Rg8 {[%clk 0:03:02]} 11. dxe5 {[%clk 0:02:41]}  dxe5 {[%clk 0:03:00]} 12. Nh2 {[%clk 0:02:33]}  Nc5 {[%clk 0:02:58]} 13. Qf3 {[%clk 0:02:28]}  Ne6 {[%clk 0:02:57]} 14. Ng4 {[%clk 0:02:20]}  Nxg4 {[%clk 0:02:56]} 15. hxg4 {[%clk 0:02:21]}  Nf4 {[%clk 0:02:47]} 16. g3 {[%clk 0:02:06]}  h5 {[%clk 0:02:47]} 17. gxh5 {[%clk 0:01:34]}  g4 {[%clk 0:02:48]} 18. Qe3 {[%clk 0:01:17]}  Nxh5 {[%clk 0:02:43]} 19. Qh6 {[%clk 0:01:12]}  Nf6 {[%clk 0:02:43]} 20. Bg5 {[%clk 0:01:03]}  Rg6 {[%clk 0:02:40]} 21. Qh8+ {[%clk 0:00:57]}  Ng8 {[%clk 0:02:40]} 22. Bxe7 {[%clk 0:00:56]}  Kxe7 {[%clk 0:02:41]} 23. Qh4+ {[%clk 0:00:52]}  Nf6 {[%clk 0:02:40]} 24. Rad1 {[%clk 0:00:47]}  Qb6 {[%clk 0:02:38]} 25. Bb3 {[%clk 0:00:39]}  Be6 {[%clk 0:02:34]} 26. Bxe6 {[%clk 0:00:37]}  fxe6 {[%clk 0:02:31]} 27. Kg2 {[%clk 0:00:19]}  Qxb2 {[%clk 0:02:30]} 28. Rb1 {[%clk 0:00:18]}  Qxc3 {[%clk 0:02:30]} 29. Rxb7+ {[%clk 0:00:19]}  Kd6 {[%clk 0:02:30]} 30. Rd1+ {[%clk 0:00:18]}  Kc5 {[%clk 0:02:31]} 31. Qh1 {[%clk 0:00:11]}  Qf3+ {[%clk 0:02:31]} 32. Kg1 {[%clk 0:00:10]}  Qxh1+ {[%clk 0:02:32]} 33. Kxh1 {[%clk 0:00:11]}  Nxe4 {[%clk 0:02:33]} 34. Rdd7 {[%clk 0:00:08]}  Rh8+ {[%clk 0:02:34]} 35. Kg2 {[%clk 0:00:09]}  Rf6 {[%clk 0:02:33]} 36. Rf7 {[%clk 0:00:08]}  Rxf7 {[%clk 0:02:28]} 37. Rxf7 {[%clk 0:00:09]}  Rd8 {[%clk 0:02:28]} 38. Rxa7 {[%clk 0:00:08]}  Rd2 {[%clk 0:02:29]} 39. Rf7 {[%clk 0:00:08]}  Rxf2+ {[%clk 0:02:30]} 40. Rxf2 {[%clk 0:00:07]}  Nxf2 {[%clk 0:02:28]} 41. Kxf2 {[%clk 0:00:08]}  Kb4 {[%clk 0:02:28]} 42. Ke3 {[%clk 0:00:07]}  Kxa4 {[%clk 0:02:29]} 43. Ke4 {[%clk 0:00:07]}  Kb4 {[%clk 0:02:26]} 44. Kxe5 {[%clk 0:00:07]}  Kc3 {[%clk 0:02:26]} 45. Kxe6 {[%clk 0:00:04]}  Kxc2 {[%clk 0:02:27]} 46. Kf5 {[%clk 0:00:04]}  Kc3 {[%clk 0:02:24]} 47. Kxg4 {[%clk 0:00:05]}  Kd4 {[%clk 0:02:19]} 48. Kf5 {[%clk 0:00:06]}  c5 {[%clk 0:02:13]} 49. g4 {[%clk 0:00:06]}  c4 {[%clk 0:02:14]} 50. g5 {[%clk 0:00:06]}  c3 {[%clk 0:02:15]} 51. g6 {[%clk 0:00:07]}  c2 {[%clk 0:02:16]} 52. g7 {[%clk 0:00:08]}  c1=Q {[%clk 0:02:17]} 53. g8=Q {[%clk 0:00:08]}  Qf1+ {[%clk 0:02:15]} 54. Kg6 {[%clk 0:00:08]}  Qg2+ {[%clk 0:02:14]} 55. Kf7 {[%clk 0:00:08]}  Qf3+ {[%clk 0:02:14]} 56. Kg7 {[%clk 0:00:09]}  Qg4+ {[%clk 0:02:14]} 57. Kf7 {[%clk 0:00:09]}  Qf5+ {[%clk 0:02:14]} 58. Kg7 {[%clk 0:00:09]}  Qg5+ {[%clk 0:02:13]} 59. Kf7 {[%clk 0:00:10]}  Qh5+ {[%clk 0:02:13]} 60. Kg7 {[%clk 0:00:10]}  Ke5 {[%clk 0:02:13]} 61. Qb8+ {[%clk 0:00:09]}  Ke6 {[%clk 0:02:13]} 62. Qb6+ {[%clk 0:00:09]}  Kf5 {[%clk 0:02:14]} 63. Qc5+ {[%clk 0:00:09]}  Kg4 {[%clk 0:02:14]} 64. Qxh5+ {[%clk 0:00:10]}  Kxh5 {[%clk 0:02:15]} 1/2-1/2


[Site "https://www.chess.com"]

[Event "Titled Tuesday Blitz November 29 Early 2022"]
[White "Taboas Rodriguez, Daniel"]
[Black "Malka, Samuel"]
[WhiteFideId "2208466"]
[BlackFideId "20643675"]
[WhiteElo "2329"]
[BlackElo "2451"]
[Result "1/2-1/2"]
[Round "03"]
[TimeControl "180+1"]
[Date "2022.11.30"]
[WhiteClock "0:00:18"]
[BlackClock "0:00:12"]

1. d4 {[%clk 0:03:00]}  d5 {[%clk 0:02:59]} 2. c4 {[%clk 0:02:57]}  e6 {[%clk 0:02:59]} 3. Nc3 {[%clk 0:02:57]}  Nf6 {[%clk 0:02:59]} 4. Bg5 {[%clk 0:02:57]}  Be7 {[%clk 0:02:56]} 5. e3 {[%clk 0:02:57]}  h6 {[%clk 0:02:54]} 6. Bh4 {[%clk 0:02:57]}  O-O {[%clk 0:02:49]} 7. Nf3 {[%clk 0:02:57]}  Nbd7 {[%clk 0:02:44]} 8. Rc1 {[%clk 0:02:56]}  c5 {[%clk 0:02:41]} 9. cxd5 {[%clk 0:02:50]}  Nxd5 {[%clk 0:02:42]} 10. Bxe7 {[%clk 0:02:48]}  Nxe7 {[%clk 0:02:43]} 11. a3 {[%clk 0:02:35]}  b6 {[%clk 0:02:33]} 12. Bb5 {[%clk 0:02:32]}  cxd4 {[%clk 0:02:24]} 13. Nxd4 {[%clk 0:02:31]}  Ne5 {[%clk 0:02:04]} 14. O-O {[%clk 0:02:30]}  Bb7 {[%clk 0:02:01]} 15. Qe2 {[%clk 0:02:16]}  Nd5 {[%clk 0:01:54]} 16. Rfd1 {[%clk 0:02:15]}  Qf6 {[%clk 0:01:31]} 17. Nxd5 {[%clk 0:02:08]}  Bxd5 {[%clk 0:01:31]} 18. f4 {[%clk 0:02:04]}  Ng6 {[%clk 0:01:27]} 19. g3 {[%clk 0:02:00]}  Rac8 {[%clk 0:01:23]} 20. Ba6 {[%clk 0:01:50]}  Rxc1 {[%clk 0:01:22]} 21. Rxc1 {[%clk 0:01:51]}  e5 {[%clk 0:01:22]} 22. Nf3 {[%clk 0:01:41]}  exf4 {[%clk 0:01:10]} 23. exf4 {[%clk 0:01:42]}  Bxf3 {[%clk 0:01:11]} 24. Qxf3 {[%clk 0:01:41]}  Qxb2 {[%clk 0:01:11]} 25. Rc7 {[%clk 0:01:36]}  Re8 {[%clk 0:01:07]} 26. Rxa7 {[%clk 0:01:29]}  b5 {[%clk 0:00:59]} 27. Ra8 {[%clk 0:01:24]}  Qc1+ {[%clk 0:00:45]} 28. Kg2 {[%clk 0:01:20]}  Qd2+ {[%clk 0:00:36]} 29. Kh3 {[%clk 0:01:20]}  Qd7+ {[%clk 0:00:34]} 30. Kg2 {[%clk 0:01:16]}  Qd2+ {[%clk 0:00:28]} 31. Kh3 {[%clk 0:01:16]}  Qd7+ {[%clk 0:00:29]} 32. f5 {[%clk 0:01:16]}  Rxa8 {[%clk 0:00:21]} 33. Qxa8+ {[%clk 0:01:17]}  Kh7 {[%clk 0:00:22]} 34. Bc8 {[%clk 0:01:10]}  Nf4+ {[%clk 0:00:15]} 35. gxf4 {[%clk 0:01:10]}  Qd3+ {[%clk 0:00:15]} 36. Kg2 {[%clk 0:01:10]}  Qe2+ {[%clk 0:00:15]} 37. Kg3 {[%clk 0:01:10]}  Qe1+ {[%clk 0:00:15]} 38. Kh3 {[%clk 0:00:43]}  Qe3+ {[%clk 0:00:15]} 39. Kg4 {[%clk 0:00:41]}  Qg1+ {[%clk 0:00:15]} 40. Kh3 {[%clk 0:00:36]}  Qe3+ {[%clk 0:00:15]} 41. Kg2 {[%clk 0:00:27]}  Qe2+ {[%clk 0:00:15]} 42. Kg3 {[%clk 0:00:24]}  Qe1+ {[%clk 0:00:13]} 43. Kh3 {[%clk 0:00:18]}  Qe3+ {[%clk 0:00:12]} 1/2-1/2


[Site "https://www.chess.com"]

[Event "Titled Tuesday Blitz November 29 Early 2022"]
[White "Tarnowska, Aleksandra"]
[Black "Radjabov, Teimour"]
[WhiteFideId "1180967"]
[BlackFideId "13400924"]
[WhiteElo "1776"]
[BlackElo "2709"]
[Result "0-1"]
[Round "03"]
[TimeControl "180+1"]
[Date "2022.11.30"]
[WhiteClock "0:00:01"]
[BlackClock "0:02:35"]

1. e4 {[%clk 0:03:00]}  Nf6 {[%clk 0:02:51]} 2. e5 {[%clk 0:02:57]}  Nd5 {[%clk 0:02:51]} 3. Nf3 {[%clk 0:02:48]}  d6 {[%clk 0:02:51]} 4. Bc4 {[%clk 0:02:31]}  Nb6 {[%clk 0:02:49]} 5. Bb3 {[%clk 0:02:23]}  d5 {[%clk 0:02:48]} 6. d4 {[%clk 0:02:19]}  Bg4 {[%clk 0:02:48]} 7. c3 {[%clk 0:02:16]}  e6 {[%clk 0:02:48]} 8. O-O {[%clk 0:02:12]}  c5 {[%clk 0:02:48]} 9. h3 {[%clk 0:01:41]}  Bh5 {[%clk 0:02:47]} 10. Re1 {[%clk 0:01:31]}  Nc6 {[%clk 0:02:47]} 11. Be3 {[%clk 0:01:28]}  Rc8 {[%clk 0:02:41]} 12. Nbd2 {[%clk 0:01:16]}  cxd4 {[%clk 0:02:40]} 13. cxd4 {[%clk 0:01:15]}  Bb4 {[%clk 0:02:40]} 14. a3 {[%clk 0:00:52]}  Bxd2 {[%clk 0:02:39]} 15. Qxd2 {[%clk 0:00:41]}  Bxf3 {[%clk 0:02:39]} 16. gxf3 {[%clk 0:00:41]}  Nc4 {[%clk 0:02:40]} 17. Qe2 {[%clk 0:00:22]}  Qh4 {[%clk 0:02:38]} 18. Bxc4 {[%clk 0:00:11]}  dxc4 {[%clk 0:02:39]} 19. Qxc4 {[%clk 0:00:09]}  Qxh3 {[%clk 0:02:39]} 20. Qb5 {[%clk 0:00:05]}  O-O {[%clk 0:02:38]} 21. b4 {[%clk 0:00:02]}  Ne7 {[%clk 0:02:37]} 22. Qxb7 {[%clk 0:00:02]}  Nd5 {[%clk 0:02:35]} 23. Rad1 {[%clk 0:00:01]}  Qxf3 {[%clk 0:02:35]} 0-1


[Site "https://www.chess.com"]

[Event "Titled Tuesday Blitz November 29 Early 2022"]
[White "Terzi, Alexei"]
[Black "Iinuma, Paul Y"]
[WhiteFideId "13505076"]
[BlackFideId "2031809"]
[WhiteElo "2172"]
[BlackElo "2066"]
[Result "1/2-1/2"]
[Round "03"]
[TimeControl "180+1"]
[Date "2022.11.30"]
[WhiteClock "0:00:03"]
[BlackClock "0:00:46"]

1. e4 {[%clk 0:02:59]}  d5 {[%clk 0:02:59]} 2. exd5 {[%clk 0:02:57]}  Qxd5 {[%clk 0:03:00]} 3. Nf3 {[%clk 0:02:57]}  Nf6 {[%clk 0:03:00]} 4. c4 {[%clk 0:02:57]}  Qh5 {[%clk 0:03:00]} 5. Be2 {[%clk 0:02:49]}  Bg4 {[%clk 0:03:00]} 6. O-O {[%clk 0:02:47]}  Nc6 {[%clk 0:03:00]} 7. h3 {[%clk 0:02:44]}  O-O-O {[%clk 0:03:00]} 8. Nc3 {[%clk 0:02:35]}  e5 {[%clk 0:03:01]} 9. hxg4 {[%clk 0:02:30]}  Nxg4 {[%clk 0:03:00]} 10. Ne4 {[%clk 0:02:09]}  Nd4 {[%clk 0:02:58]} 11. Neg5 {[%clk 0:02:03]}  Nxf3+ {[%clk 0:02:48]} 12. Nxf3 {[%clk 0:02:00]}  e4 {[%clk 0:02:47]} 13. Nh4 {[%clk 0:01:49]}  Qxh4 {[%clk 0:02:40]} 14. Bxg4+ {[%clk 0:01:50]}  Kb8 {[%clk 0:02:39]} 15. Bh3 {[%clk 0:01:47]}  h5 {[%clk 0:02:37]} 16. d4 {[%clk 0:01:37]}  exd3 {[%clk 0:02:28]} 17. Be3 {[%clk 0:01:27]}  Qxc4 {[%clk 0:02:08]} 18. Qb3 {[%clk 0:01:20]}  Qxb3 {[%clk 0:02:03]} 19. axb3 {[%clk 0:01:21]}  b6 {[%clk 0:01:43]} 20. Rfd1 {[%clk 0:01:20]}  g6 {[%clk 0:01:36]} 21. Bg5 {[%clk 0:01:08]}  Rd6 {[%clk 0:01:34]} 22. Bf4 {[%clk 0:01:05]}  Rd5 {[%clk 0:01:34]} 23. Rac1 {[%clk 0:01:02]}  Bd6 {[%clk 0:01:21]} 24. Bxd6 {[%clk 0:00:54]}  Rxd6 {[%clk 0:01:22]} 25. Rc3 {[%clk 0:00:50]}  d2 {[%clk 0:01:19]} 26. f3 {[%clk 0:00:37]}  Rhd8 {[%clk 0:01:18]} 27. Kf2 {[%clk 0:00:37]}  f5 {[%clk 0:01:11]} 28. f4 {[%clk 0:00:35]}  c5 {[%clk 0:01:08]} 29. g3 {[%clk 0:00:34]}  a5 {[%clk 0:01:06]} 30. Bf1 {[%clk 0:00:33]}  Kc7 {[%clk 0:01:03]} 31. Ke3 {[%clk 0:00:33]}  Re8+ {[%clk 0:01:03]} 32. Kf2 {[%clk 0:00:33]}  Red8 {[%clk 0:01:01]} 33. Re3 {[%clk 0:00:32]}  Kc6 {[%clk 0:00:56]} 34. Bg2+ {[%clk 0:00:24]}  Kb5 {[%clk 0:00:55]} 35. Bf1+ {[%clk 0:00:17]}  Kb4 {[%clk 0:00:55]} 36. Bc4 {[%clk 0:00:14]}  b5 {[%clk 0:00:54]} 37. Bf7 {[%clk 0:00:14]}  Rf6 {[%clk 0:00:49]} 38. Be6 {[%clk 0:00:07]}  Rd6 {[%clk 0:00:49]} 39. Bg8 {[%clk 0:00:06]}  Rf8 {[%clk 0:00:49]} 40. Be6 {[%clk 0:00:03]}  Rf6 {[%clk 0:00:49]} 41. Bg8 {[%clk 0:00:03]}  Rd8 {[%clk 0:00:49]} 42. Be6 {[%clk 0:00:03]}  Rd6 {[%clk 0:00:46]} 1/2-1/2


[Site "https://www.chess.com"]

[Event "Titled Tuesday Blitz November 29 Early 2022"]
[White "Trost, Edvin"]
[Black "Mohammed, Zozek Salah Mohammed"]
[WhiteFideId "1729519"]
[BlackFideId "4803361"]
[WhiteElo "2247"]
[BlackElo "2199"]
[Result "1/2-1/2"]
[Round "03"]
[TimeControl "180+1"]
[Date "2022.11.30"]
[WhiteClock "0:00:06"]
[BlackClock "0:00:08"]

1. e4 {[%clk 0:02:55]}  c5 {[%clk 0:02:59]} 2. Nc3 {[%clk 0:02:55]}  d6 {[%clk 0:02:53]} 3. g3 {[%clk 0:02:55]}  Nc6 {[%clk 0:02:53]} 4. Bg2 {[%clk 0:02:55]}  e5 {[%clk 0:02:53]} 5. d3 {[%clk 0:02:51]}  g6 {[%clk 0:02:53]} 6. Be3 {[%clk 0:02:48]}  Bg7 {[%clk 0:02:53]} 7. Qd2 {[%clk 0:02:48]}  Nge7 {[%clk 0:02:51]} 8. Nge2 {[%clk 0:02:47]}  Nd4 {[%clk 0:02:50]} 9. Rc1 {[%clk 0:02:41]}  Bg4 {[%clk 0:02:48]} 10. Bh6 {[%clk 0:02:31]}  Bf6 {[%clk 0:02:28]} 11. Nxd4 {[%clk 0:02:18]}  cxd4 {[%clk 0:02:25]} 12. Ne2 {[%clk 0:02:18]}  Qb6 {[%clk 0:02:19]} 13. h3 {[%clk 0:02:16]}  Bxe2 {[%clk 0:02:17]} 14. Kxe2 {[%clk 0:02:14]}  Nc6 {[%clk 0:02:10]} 15. c4 {[%clk 0:02:06]}  dxc3 {[%clk 0:02:08]} 16. bxc3 {[%clk 0:02:07]}  Rc8 {[%clk 0:02:03]} 17. h4 {[%clk 0:02:05]}  Qa6 {[%clk 0:01:44]} 18. h5 {[%clk 0:02:01]}  Nb8 {[%clk 0:01:42]} 19. Be3 {[%clk 0:01:58]}  Nd7 {[%clk 0:01:38]} 20. hxg6 {[%clk 0:01:57]}  hxg6 {[%clk 0:01:39]} 21. Rxh8+ {[%clk 0:01:56]}  Bxh8 {[%clk 0:01:39]} 22. Rh1 {[%clk 0:01:57]}  Ke7 {[%clk 0:01:38]} 23. Bh3 {[%clk 0:01:54]}  Bf6 {[%clk 0:01:26]} 24. Bg5 {[%clk 0:01:42]}  Rc7 {[%clk 0:01:25]} 25. Bxd7 {[%clk 0:01:41]}  Rxd7 {[%clk 0:01:24]} 26. Bxf6+ {[%clk 0:01:39]}  Kxf6 {[%clk 0:01:25]} 27. Rh8 {[%clk 0:01:38]}  Rc7 {[%clk 0:01:18]} 28. Kf3 {[%clk 0:01:35]}  Qa5 {[%clk 0:01:06]} 29. Qh6 {[%clk 0:01:28]}  Qxc3 {[%clk 0:01:02]} 30. Qh4+ {[%clk 0:01:28]}  Ke6 {[%clk 0:00:54]} 31. Kg2 {[%clk 0:01:19]}  Qxd3 {[%clk 0:00:40]} 32. Rb8 {[%clk 0:00:50]}  Rc4 {[%clk 0:00:32]} 33. Qg4+ {[%clk 0:00:47]}  Kf6 {[%clk 0:00:29]} 34. Qh4+ {[%clk 0:00:46]}  Ke6 {[%clk 0:00:29]} 35. Re8+ {[%clk 0:00:40]}  Kd7 {[%clk 0:00:27]} 36. Qe7+ {[%clk 0:00:40]}  Kc6 {[%clk 0:00:26]} 37. Rc8+ {[%clk 0:00:40]}  Kb6 {[%clk 0:00:25]} 38. Rxc4 {[%clk 0:00:28]}  Qxc4 {[%clk 0:00:24]} 39. Qxd6+ {[%clk 0:00:29]}  Qc6 {[%clk 0:00:21]} 40. Qxe5 {[%clk 0:00:30]}  Qe6 {[%clk 0:00:21]} 41. Qd4+ {[%clk 0:00:29]}  Kc6 {[%clk 0:00:20]} 42. a3 {[%clk 0:00:25]}  b6 {[%clk 0:00:19]} 43. f4 {[%clk 0:00:22]}  a5 {[%clk 0:00:18]} 44. Kf3 {[%clk 0:00:22]}  Qb3+ {[%clk 0:00:18]} 45. Kg4 {[%clk 0:00:22]}  Qe6+ {[%clk 0:00:19]} 46. f5 {[%clk 0:00:22]}  gxf5+ {[%clk 0:00:18]} 47. exf5 {[%clk 0:00:22]}  Qe2+ {[%clk 0:00:18]} 48. Kg5 {[%clk 0:00:22]}  Qe7+ {[%clk 0:00:17]} 49. f6 {[%clk 0:00:19]}  Qc5+ {[%clk 0:00:16]} 50. Qxc5+ {[%clk 0:00:19]}  bxc5 {[%clk 0:00:16]} 51. g4 {[%clk 0:00:14]}  c4 {[%clk 0:00:16]} 52. Kf4 {[%clk 0:00:14]}  Kd6 {[%clk 0:00:16]} 53. a4 {[%clk 0:00:07]}  Ke6 {[%clk 0:00:15]} 54. g5 {[%clk 0:00:06]}  c3 {[%clk 0:00:16]} 55. Ke3 {[%clk 0:00:06]}  Kf5 {[%clk 0:00:16]} 56. Kd3 {[%clk 0:00:06]}  Kxg5 {[%clk 0:00:17]} 57. Kxc3 {[%clk 0:00:07]}  Kxf6 {[%clk 0:00:17]} 58. Kc4 {[%clk 0:00:07]}  Ke5 {[%clk 0:00:17]} 59. Kb5 {[%clk 0:00:08]}  Kd5 {[%clk 0:00:17]} 60. Kxa5 {[%clk 0:00:09]}  Kc5 {[%clk 0:00:17]} 61. Ka6 {[%clk 0:00:09]}  f5 {[%clk 0:00:17]} 62. Kb7 {[%clk 0:00:08]}  f4 {[%clk 0:00:17]} 63. a5 {[%clk 0:00:09]}  f3 {[%clk 0:00:17]} 64. a6 {[%clk 0:00:10]}  f2 {[%clk 0:00:18]} 65. a7 {[%clk 0:00:11]}  f1=Q {[%clk 0:00:18]} 66. a8=Q {[%clk 0:00:12]}  Qf3+ {[%clk 0:00:16]} 67. Ka7 {[%clk 0:00:09]}  Qa3+ {[%clk 0:00:14]} 68. Kb8 {[%clk 0:00:09]}  Qg3+ {[%clk 0:00:12]} 69. Ka7 {[%clk 0:00:08]}  Qa3+ {[%clk 0:00:10]} 70. Kb8 {[%clk 0:00:08]}  Qg3+ {[%clk 0:00:09]} 71. Ka7 {[%clk 0:00:06]}  Qc7+ {[%clk 0:00:08]} 72. Qb7 {[%clk 0:00:06]}  Qxb7+ {[%clk 0:00:08]} 73. Kxb7 {[%clk 0:00:06]} 1/2-1/2


[Site "https://www.chess.com"]